bitfinex/quotes_SOLUSD_20251009
["timestamp","ask_amount","ask_price","bid_price","bid_amount"]
[1759977480524,5.81845869,226.54,226.5,10.87647521]
[1759977480719,32.2,226.54,226.5,10.87647521]
[1759977481027,31.48,226.54,226.5,11.53647521]
[1759977481218,31.48,226.54,226.52,10.87647521]
[1759977481652,0.72,226.53,226.5,10.87647521]
[1759977481831,31.48,226.55,226.52,10.87647521]
[1759977482033,31.48,226.55,226.53,4.41442634]
[1759977482251,31.48,226.55,226.54,15.9749339]
[1759977482446,32.2,226.55,226.47,36.75207109]
[1759977482631,32.2,226.55,226.51,10.87647521]
[1759977483742,0.5,226.54,226.51,10.87647521]
[1759977484266,0.5,226.54,226.53,15.9749339]
[1759977484557,31.48,226.6,226.54,10.87647521]
[1759977484762,31.48,226.6,226.59,10.87647521]
[1759977485821,31.48,226.6,226.49,19.99999999]
[1759977486126,31.48,226.6,226.56,3.49144181]
[1759977486331,31.48,226.6,226.58,10.87647521]
[1759977486525,0.66,226.63,226.58,10.87647521]
[1759977486727,31.48,226.63,226.58,10.87647521]
[1759977486923,4.15144181,226.62,226.57,10.87647521]
[1759977487252,3.49144181,226.58,226.55,10.87647521]
[1759977487429,34.99144181,226.58,226.52,10.87647521]
[1759977487933,34.99144181,226.58,226.53,4.41442634]
[1759977488332,3.49144181,226.54,226.51,10.87647521]
[1759977488547,0.66,226.53,226.51,10.87647521]
[1759977488851,34.99144181,226.54,226.48,15.29187612]
[1759977489431,34.99144181,226.54,226.48,26.33037841]
[1759977489666,31.5,226.54,226.48,29.82182022]
[1759977490135,31.5,226.54,226.48,26.33037841]
[1759977490339,31.5,226.54,226.49,3.49144181]
[1759977490757,31.5,226.54,226.49,4.19144181]
[1759977491445,32.16,226.54,226.51,10.87647521]
[1759977492437,32.16,226.54,226.51,15.29112774]
[1759977492654,31.5,226.54,226.51,15.29112774]
[1759977493057,32.16,226.54,226.51,15.29112774]
[1759977493239,31.5,226.54,226.51,15.99112774]
[1759977493941,31.5,226.54,226.51,15.29112774]
[1759977494133,0.5,226.56,226.54,10.87647521]
[1759977494444,0.5,226.56,226.55,15.99051184]
[1759977495360,0.5,226.56,226.55,10.87647521]
[1759977495867,1.16,226.56,226.39,26.51]
[1759977496047,3.49186141,226.5,226.44,10.87647521]
[1759977496367,0.66,226.55,226.43,4.41637592]
[1759977496368,31.48,226.49,226.45,0.7]
[1759977496552,31.48,226.49,226.47,10.87647521]
[1759977498177,31.48,226.49,226.47,4.41553125]
[1759977499261,31.48,226.49,226.48,10.87647521]
[1759977499563,31.48,226.49,226.48,11.58647521]
[1759977499738,31.48,226.49,226.47,15.29200646]
[1759977499940,31.48,226.51,226.47,15.29200646]
[1759977500140,31.48,226.51,226.47,16.00200646]
[1759977500770,31.48,226.51,226.47,15.29200646]
[1759977501064,32.15,226.51,226.47,4.41553125]
[1759977501850,35.64186141,226.51,226.47,4.41553125]
[1759977502563,0.67,226.5,226.46,4.41579086]
[1759977502771,34.97186141,226.51,226.46,4.41579086]
[1759977502973,0.67,226.49,226.47,10.87647521]
[1759977503963,34.97186141,226.51,226.48,10.87647521]
[1759977504267,0.67,226.5,226.48,10.87647521]
[1759977506171,31.48,226.51,226.49,10.87647521]
[1759977506371,32.15,226.51,226.49,10.87647521]
[1759977507665,0.5,226.56,226.5,11.58647521]
[1759977507890,4.41268354,226.62,226.52,10.87647521]
[1759977508163,31.48,226.61,226.54,10.87647521]
[1759977508668,31.48,226.61,226.55,11.58647521]
[1759977508859,0.67,226.65,226.57,10.87647521]
[1759977509050,0.67,226.65,226.58,0.71]
[1759977509255,0.67,226.65,226.6,4.41306266]
[1759977509256,31.5,226.64,226.6,4.41306266]
[1759977509463,31.5,226.64,226.6,5.12306266]
[1759977510045,34.44,226.68,226.62,10.87647521]
[1759977510046,35.11,226.68,226.62,10.87647521]
[1759977510251,35.66015179,226.67,226.62,10.87647521]
[1759977510549,0.67,226.66,226.62,10.87647521]
[1759977510757,4.16015179,226.66,226.62,10.87647521]
[1759977511465,3.49015179,226.63,226.62,10.87647521]
[1759977511662,35.64015179,226.63,226.62,10.87647521]
[1759977511853,35.64015179,226.63,226.57,10.87647521]
[1759977512054,35.64015179,226.63,226.51,0.71]
[1759977512055,3.49015179,226.58,226.55,10.87647521]
[1759977512254,34.99015179,226.58,226.55,10.87647521]
[1759977512452,31.5,226.58,226.55,10.87647521]
[1759977513070,32.0,226.58,226.55,10.87647521]
[1759977513847,32.0,226.58,226.55,4.41398022]
[1759977514454,0.5,226.58,226.55,4.41398022]
[1759977514655,31.48,226.57,226.55,4.41398022]
[1759977515061,0.5,226.58,226.55,4.41398022]
[1759977515269,31.48,226.57,226.55,5.12398022]
[1759977515681,0.5,226.58,226.53,5.11442634]
[1759977515971,31.48,226.58,226.53,4.41442634]
[1759977516163,31.48,226.58,226.55,10.87647521]
[1759977516362,31.48,226.58,226.57,10.87647521]
[1759977516555,4.16015179,226.62,226.57,10.87647521]
[1759977516759,31.48,226.61,226.57,10.87647521]
[1759977516962,31.48,226.61,226.59,10.87647521]
[1759977517972,3.67762587,226.74,226.5,26.51]
[1759977518170,3.49015179,226.67,226.56,10.87647521]
[1759977518374,3.49015179,226.66,226.58,10.87647521]
[1759977518582,32.22,226.65,226.58,10.87647521]
[1759977518870,35.71015179,226.65,226.58,10.87647521]
[1759977519056,3.49015179,226.63,226.58,10.87647521]
[1759977519253,4.19015179,226.62,226.54,0.7]
[1759977519488,35.03015179,226.61,226.55,10.87647521]
[1759977519780,31.54,226.61,226.55,10.87647521]
[1759977519975,0.7,226.6,226.55,15.29047514]
[1759977520161,3.49015179,226.6,226.55,15.99047514]
[1759977520353,4.19015179,226.59,226.55,15.29047514]
[1759977520558,0.7,226.58,226.55,15.29047514]
[1759977520763,31.54,226.57,226.55,15.29047514]
[1759977520966,4.19015179,226.59,226.55,15.29047514]
[1759977521166,31.54,226.57,226.55,15.29047514]
[1759977522279,31.54,226.57,226.52,0.7]
[1759977522477,0.7,226.56,226.5,15.29148624]
[1759977523180,4.19015179,226.55,226.5,15.29148624]
[1759977523377,4.18015179,226.55,226.5,15.29148624]
[1759977523680,3.49015179,226.51,226.47,10.87647521]
[1759977523881,31.52,226.5,226.47,10.87647521]
[1759977524065,31.52,226.5,226.47,4.41559588]
[1759977524271,31.52,226.5,226.46,15.29224102]
[1759977524781,31.52,226.5,226.46,15.99224102]
[1759977526302,31.52,226.5,226.47,0.7]
[1759977526464,0.69,226.62,226.47,0.7]
[1759977526788,20.8,226.58,226.47,0.7]
[1759977526988,35.72015179,226.57,226.47,0.7]
[1759977527688,3.49015179,226.56,226.47,0.7]
[1759977528180,35.72015179,226.57,226.48,26.33037841]
[1759977528386,0.5,226.54,226.5,10.87647521]
[1759977528582,0.5,226.54,226.5,0.7]
[1759977529793,0.5,226.54,226.52,10.87647521]
[1759977530090,0.5,226.54,226.53,15.29090155]
[1759977530388,0.5,226.54,226.53,10.87647521]
[1759977531477,29.89438327,226.54,226.41,0.7]
[1759977531682,3.49015179,226.5,226.42,10.87647521]
[1759977531883,0.69,226.52,226.44,10.87647521]
[1759977532085,3.49015179,226.51,226.46,15.29226607]
[1759977532286,4.18015179,226.5,226.46,15.29226607]
[1759977533274,35.70015179,226.53,226.48,10.87647521]
[1759977533474,0.5,226.54,226.49,0.7]
[1759977533692,31.54,226.53,226.47,11.57647521]
[1759977533872,4.68015179,226.54,226.48,0.7]
[1759977533873,0.5,226.54,226.48,0.7]
[1759977534078,0.5,226.54,226.5,10.87647521]
[1759977534288,0.5,226.54,226.51,0.7]
[1759977534480,0.5,226.54,226.53,10.87647521]
[1759977534876,0.5,226.54,226.5,10.87647521]
[1759977535090,0.5,226.54,226.5,11.57647521]
[1759977535275,0.5,226.54,226.52,10.87647521]
[1759977535670,0.5,226.54,226.5,10.87647521]
[1759977535873,0.69,226.53,226.5,10.87647521]
[1759977536073,3.99015179,226.54,226.51,10.87647521]
[1759977536500,0.5,226.54,226.51,10.87647521]
[1759977537977,0.69,226.53,226.51,10.87647521]
[1759977538177,3.99015179,226.54,226.51,4.4148136]
[1759977539198,0.5,226.54,226.51,0.7]
[1759977539589,0.5,226.54,226.5,10.87647521]
[1759977539784,0.5,226.54,226.5,11.57647521]
[1759977540288,1.31763872,226.52,226.48,10.87647521]
[1759977540594,1.31763872,226.49,226.46,10.87647521]
[1759977540778,2.00763872,226.49,226.44,10.87647521]
[1759977540974,1.31763872,226.48,226.44,11.57647521]
[1759977541181,1.31763872,226.48,226.44,15.2926533]
[1759977541384,2.00763872,226.48,226.44,15.2926533]
[1759977541689,1.31763872,226.47,226.44,15.2926533]
[1759977542001,0.69,226.48,226.44,15.2926533]
[1759977542236,1.31763872,226.47,226.44,15.2926533]
[1759977542806,1.31763872,226.47,226.44,10.87647521]
[1759977542999,0.69,226.48,226.44,10.87647521]
[1759977543000,2.00763872,226.48,226.44,10.87647521]
[1759977543999,31.56,226.49,226.44,15.2925473]
[1759977544219,0.5,226.54,226.46,10.87647521]
[1759977544380,3.49609855,226.59,226.46,10.87647521]
[1759977544700,3.49609855,226.59,226.48,10.87647521]
[1759977544701,3.49609855,226.58,226.48,10.87647521]
[1759977544879,3.49609855,226.58,226.5,10.87647521]
[1759977545398,3.49609855,226.54,226.5,10.87647521]
[1759977545591,3.49609855,226.54,226.5,0.68]
[1759977545792,24.29609855,226.55,226.5,0.68]
[1759977546098,0.5,226.52,226.5,0.68]
[1759977546482,0.5,226.52,226.48,11.55647521]
[1759977546683,0.5,226.52,226.5,10.87647521]
[1759977547084,0.5,226.52,226.51,10.87647521]
[1759977547503,0.5,226.52,226.51,11.55647521]
[1759977547677,0.5,226.52,226.51,15.29129133]
[1759977548902,0.5,226.52,226.51,10.87647521]
[1759977550110,0.5,226.52,226.51,15.29129133]
[1759977550811,0.5,226.52,226.51,15.97129133]
[1759977551584,0.5,226.52,226.51,10.87647521]
[1759977552018,0.5,226.52,226.51,15.97129133]
[1759977553210,5.09785646,226.6,226.52,10.87647521]
[1759977553508,5.09785646,226.58,226.54,10.87647521]
[1759977553706,5.09785646,226.59,226.54,10.87647521]
[1759977554025,5.77785646,226.59,226.55,4.41403663]
[1759977554199,5.09785646,226.58,226.54,10.87647521]
[1759977554590,5.09785646,226.58,226.54,15.29067527]
[1759977554819,5.09785646,226.55,226.51,4.41474402]
[1759977555008,5.77785646,226.55,226.52,10.87647521]
[1759977555191,5.77785646,226.55,226.51,10.87647521]
[1759977555699,5.09785646,226.55,226.51,10.87647521]
[1759977556307,5.09825682,226.55,226.51,15.29111173]
[1759977556505,5.09825682,226.55,226.51,4.41463652]
[1759977556716,5.09371209,226.57,226.51,5.09463652]
[1759977556920,0.68,226.57,226.52,10.87647521]
[1759977557129,5.09365144,226.57,226.52,10.87647521]
[1759977557417,4.41365144,226.57,226.51,4.41463652]
[1759977557623,0.68,226.56,226.51,4.41463652]
[1759977557993,0.68,226.56,226.51,5.09463652]
[1759977558303,0.5,226.54,226.51,5.09463652]
[1759977558497,0.5,226.54,226.49,10.87647521]
[1759977558709,0.5,226.54,226.51,10.87647521]
[1759977558901,0.5,226.54,226.47,5.09825682]
[1759977558902,0.5,226.54,226.46,5.09825682]
[1759977559105,5.09825682,226.51,226.46,10.87647521]
[1759977559416,5.09825682,226.5,226.46,11.55647521]
[1759977559793,5.09825682,226.5,226.46,10.87647521]
[1759977560099,5.09825682,226.51,226.46,11.55647521]
[1759977560300,5.09825682,226.51,226.46,15.97208011]
[1759977560922,0.5,226.54,226.46,15.97208011]
[1759977560923,0.5,226.54,226.48,15.97473203]
[1759977561129,0.5,226.54,226.5,5.09825682]
[1759977561311,0.5,226.54,226.52,10.87647521]
[1759977561625,0.5,226.54,226.53,11.55647521]
[1759977562831,0.5,226.54,226.53,15.29090155]
[1759977564108,0.5,226.54,226.53,15.97090155]
[1759977565525,0.5,226.54,226.53,10.87647521]
[1759977565716,0.5,226.54,226.53,15.29090155]
[1759977568127,0.5,226.54,226.53,10.87647521]
[1759977568329,1.18,226.54,226.51,10.87647521]
[1759977568510,2.73844158,226.53,226.48,10.87647521]
[1759977568713,0.68,226.52,226.48,10.87647521]
[1759977568913,2.73844158,226.52,226.48,15.29187612]
[1759977569230,0.68,226.51,226.48,15.29187612]
[1759977569530,2.05844158,226.51,226.46,10.87647521]
[1759977569733,2.05844158,226.47,226.43,10.87647521]
[1759977569940,2.05844158,226.47,226.42,10.87647521]
[1759977570134,2.73844158,226.47,226.42,4.41654461]
[1759977570829,2.05844158,226.46,226.42,4.41654461]
[1759977571332,2.05844158,226.46,226.42,5.09654461]
[1759977572121,2.05844158,226.46,226.42,4.41654461]
[1759977572437,0.68,226.49,226.42,5.09654461]
[1759977572633,2.05844158,226.46,226.42,4.41654461]
[1759977574316,2.05844158,226.46,226.42,5.09654461]
[1759977574633,2.05844158,226.47,226.42,5.09654461]
[1759977575235,2.05844158,226.47,226.44,10.87647521]
[1759977576142,2.05844158,226.46,226.41,16.00317849]
[1759977576444,2.05844158,226.46,226.41,15.29317849]
[1759977576662,2.05844158,226.46,226.43,10.87647521]
[1759977577020,2.05844158,226.46,226.41,4.41670328]
[1759977577319,2.05844158,226.46,226.43,15.29281331]
[1759977577763,5.11403692,226.55,226.46,10.87647521]
[1759977578050,2.05844158,226.53,226.48,10.87647521]
[1759977578235,0.7,226.53,226.46,10.87647521]
[1759977578421,2.05844158,226.52,226.48,10.87647521]
[1759977578629,2.05844158,226.52,226.48,11.58647521]
[1759977579249,2.05844158,226.49,226.44,0.71]
[1759977579431,2.05844158,226.47,226.45,10.87647521]
[1759977579942,0.7,226.51,226.45,0.71]
[1759977580141,2.05844158,226.48,226.45,0.71]
[1759977580343,2.05844158,226.48,226.44,10.87647521]
[1759977580543,0.7,226.5,226.44,11.58647521]
[1759977580731,2.05844158,226.48,226.44,11.58647521]
[1759977581121,2.05844158,226.47,226.44,10.87647521]
[1759977581529,2.05844158,226.47,226.43,10.87647521]
[1759977581939,2.75844158,226.47,226.43,10.87647521]
[1759977582750,2.05844158,226.47,226.43,11.58647521]
[1759977582952,2.05844158,226.47,226.43,10.87647521]
[1759977583249,2.05844158,226.47,226.43,11.57647521]
[1759977583442,0.5,226.46,226.43,15.99275693]
[1759977583643,2.05844158,226.47,226.43,15.99275693]
[1759977584226,36.57523474,226.49,226.43,15.99275693]
[1759977584427,2.05844158,226.48,226.43,15.99275693]
[1759977584657,33.55844158,226.49,226.44,0.7]
[1759977584831,2.71844158,226.48,226.43,10.87647521]
[1759977585028,2.05844158,226.45,226.4,5.21695334]
[1759977585244,0.66,226.47,226.41,11.57647521]
[1759977585245,2.05844158,226.46,226.41,11.57647521]
[1759977585443,2.05844158,226.46,226.43,10.87647521]
[1759977586263,2.05844158,226.45,226.41,0.7]
[1759977586933,4.41561064,226.47,226.43,10.87647521]
[1759977587131,2.05844158,226.45,226.43,10.87647521]
[1759977587424,2.05844158,226.46,226.43,10.87647521]
[1759977588151,2.05844158,226.47,226.43,15.29280345]
[1759977588449,2.05844158,226.47,226.43,15.99280345]
[1759977588646,2.05844158,226.47,226.43,11.57647521]
[1759977589645,6.47403804,226.47,226.43,11.57647521]
[1759977589850,2.05844158,226.46,226.4,5.21683327]
[1759977590049,2.05844158,226.44,226.42,10.87647521]
[1759977590437,2.05844158,226.44,226.4,0.1]
[1759977590642,2.05844158,226.44,226.41,10.87647521]
[1759977591041,2.71844158,226.43,226.4,0.1]
[1759977591240,2.05844158,226.41,226.4,0.1]
[1759977591758,27.93520762,226.41,226.4,0.1]
[1759977592426,23.51844158,226.41,226.4,0.1]
[1759977592628,27.93520762,226.41,226.4,0.1]
[1759977592828,23.51844158,226.41,226.4,0.1]
[1759977593264,27.93520762,226.41,226.4,0.1]
[1759977594067,32.16,226.44,226.4,0.1]
[1759977594369,23.51844158,226.41,226.4,0.1]
[1759977594734,22.85844158,226.41,226.4,0.1]
[1759977595031,2.05844158,226.42,226.4,0.8]
[1759977595337,31.5,226.44,226.41,0.7]
[1759977595539,31.5,226.44,226.42,0.7]
[1759977595848,31.5,226.44,226.43,0.7]
[1759977596156,0.66,226.52,226.43,5.11637592]
[1759977596331,2.71844158,226.54,226.46,2.05844158]
[1759977596532,33.55844158,226.54,226.48,10.87647521]
[1759977596751,2.05844158,226.53,226.48,10.87647521]
[1759977597050,2.05844158,226.53,226.49,0.7]
[1759977598136,2.05844158,226.53,226.49,5.11516713]
[1759977598451,2.05926402,226.53,226.49,5.11516713]
[1759977598663,2.55926402,226.51,226.46,0.7]
[1759977598839,2.55926402,226.51,226.37,22.08751259]
[1759977598840,2.05926402,226.49,226.44,10.87647521]
[1759977599154,2.05926402,226.49,226.46,10.87647521]
[1759977599362,0.5,226.51,226.46,11.57647521]
[1759977599540,2.05926402,226.49,226.46,11.57647521]
[1759977600457,2.05926402,226.47,226.41,10.87647521]
[1759977600765,2.05926402,226.43,226.41,10.87647521]
[1759977601955,2.05926402,226.42,226.4,0.1]
[1759977602156,2.05926402,226.41,226.4,0.1]
[1759977603868,5.10442611,226.41,226.4,0.1]
[1759977604368,5.76442611,226.41,226.4,0.1]
[1759977605073,26.56442611,226.41,226.4,0.1]
[1759977605567,30.98119215,226.41,226.4,0.1]
[1759977606262,30.32119215,226.41,226.4,0.1]
[1759977606963,5.10442611,226.42,226.4,0.1]
[1759977607164,31.5,226.41,226.4,0.79]
[1759977607751,31.5,226.41,226.4,16.08343634]
[1759977608278,31.5,226.41,226.4,10.97647521]
[1759977609056,31.5,226.41,226.4,16.08343634]
[1759977609450,0.66,226.47,226.41,10.87647521]
[1759977609451,5.10442611,226.47,226.41,10.87647521]
[1759977609647,22.0689067,226.57,226.4,16.24936395]
[1759977609648,0.66,226.54,226.43,10.87647521]
[1759977609881,34.99442588,226.53,226.45,10.87647521]
[1759977610075,3.49442588,226.52,226.45,10.87647521]
[1759977610251,3.99442588,226.52,226.47,10.87647521]
[1759977610449,3.99442588,226.52,226.47,11.56647521]
[1759977610772,3.99442588,226.52,226.48,0.69]
[1759977611071,3.99442588,226.52,226.48,5.10536715]
[1759977611450,0.5,226.52,226.49,11.56647521]
[1759977611750,0.5,226.52,226.51,10.87647521]
[1759977611950,0.5,226.52,226.51,11.56647521]
[1759977612949,12.37639937,226.66,226.51,27.01833163]
[1759977613149,7.9643143,226.66,226.55,10.87647521]
[1759977613462,20.8,226.67,226.57,10.87647521]
[1759977613667,20.8,226.67,226.59,10.87647521]
[1759977613851,20.8,226.67,226.61,10.87647521]
[1759977614046,20.8,226.67,226.63,10.87647521]
[1759977614464,24.29442588,226.67,226.56,10.87647521]
[1759977614670,24.29442588,226.67,226.63,0.69]
[1759977614866,3.49442588,226.66,226.55,10.87647521]
[1759977615047,20.8,226.62,226.56,0.69]
[1759977615255,20.8,226.62,226.57,10.87647521]
[1759977615256,24.29442588,226.62,226.57,10.87647521]
[1759977615570,3.49442588,226.59,226.54,0.69]
[1759977615873,3.49442588,226.61,226.55,11.56647521]
[1759977616169,3.49442588,226.62,226.57,10.87647521]
[1759977616465,3.49442588,226.62,226.54,10.87647521]
[1759977616676,3.49442588,226.62,226.55,0.69]
[1759977617173,3.49442588,226.63,226.56,15.29031701]
[1759977617472,3.49442588,226.63,226.57,0.69]
[1759977617772,3.49442588,226.64,226.57,0.69]
[1759977618951,3.49442588,226.59,226.55,10.87647521]
[1759977619178,3.49442588,226.57,226.55,10.87647521]
[1759977619468,3.49442588,226.57,226.52,15.29109643]
[1759977619675,3.49442588,226.57,226.54,10.87647521]
[1759977620473,3.49442588,226.58,226.54,10.87647521]
[1759977620663,3.49442588,226.58,226.54,15.29069449]
[1759977621063,3.49442588,226.58,226.54,10.87647521]
[1759977621258,3.49442588,226.57,226.54,10.87647521]
[1759977621466,5.07326241,226.59,226.5,10.87647521]
[1759977621467,3.49442588,226.55,226.5,10.87647521]
[1759977621665,3.49442588,226.55,226.52,10.87647521]
[1759977622366,4.15442588,226.55,226.5,10.87647521]
[1759977622576,3.49442588,226.53,226.5,15.29148284]
[1759977622769,3.49442588,226.54,226.5,15.29148284]
[1759977623287,0.66,226.55,226.5,15.29148284]
[1759977623486,4.15442588,226.55,226.5,15.29148284]
[1759977623651,3.49442588,226.52,226.44,11.56647521]
[1759977623848,3.49442588,226.5,226.44,15.98265609]
[1759977624076,3.49442588,226.51,226.46,10.87647521]
[1759977624260,3.49442588,226.51,226.46,11.56647521]
[1759977624465,3.49442588,226.51,226.47,4.41559588]
[1759977626877,3.49442588,226.51,226.47,5.10559588]
[1759977627176,4.41492785,226.51,226.44,0.69]
[1759977627381,3.49442588,226.48,226.44,0.69]
[1759977627556,3.49442588,226.48,226.45,10.87647521]
[1759977627882,3.49442588,226.47,226.45,10.87647521]
[1759977628076,4.15442588,226.46,226.4,10.97647521]
[1759977628275,3.49442588,226.45,226.4,10.97647521]
[1759977628461,3.49442588,226.45,226.42,10.87647521]
[1759977628665,3.49442588,226.43,226.4,0.1]
[1759977628868,3.49442588,226.42,226.4,0.1]
[1759977629072,3.49442588,226.44,226.41,10.87647521]
[1759977629468,3.49442588,226.44,226.4,0.1]
[1759977630376,3.49442588,226.44,226.41,10.87647521]
[1759977630561,34.97442588,226.45,226.41,10.87647521]
[1759977630766,0.66,226.51,226.43,10.87647521]
[1759977630984,20.8,226.47,226.43,10.87647521]
[1759977631283,20.8,226.47,226.43,0.69]
[1759977631877,3.49442588,226.46,226.41,10.87647521]
[1759977632080,3.49442588,226.44,226.4,0.1]
[1759977632664,3.49442588,226.44,226.4,4.51692293]
[1759977632976,4.15442588,226.44,226.41,10.87647521]
[1759977633181,34.99442588,226.45,226.41,11.56647521]
[1759977633374,31.5,226.45,226.41,11.56647521]
[1759977633571,3.49442588,226.49,226.42,0.69]
[1759977633770,34.99442588,226.52,226.45,10.87647521]
[1759977633968,3.49442588,226.5,226.45,10.87647521]
[1759977634268,0.5,226.48,226.45,10.87647521]
[1759977634466,0.5,226.48,226.45,11.56647521]
[1759977636141,0.5,226.48,226.45,10.87647521]
[1759977636304,3.49442588,226.46,226.4,11.82216641]
[1759977636506,3.49442588,226.46,226.41,15.29308441]
[1759977636919,4.17442588,226.46,226.41,15.97308441]
[1759977637100,4.17442588,226.46,226.41,15.29308441]
[1759977637297,3.49442588,226.44,226.41,10.87647521]
[1759977638825,3.49442588,226.43,226.4,0.1]
[1759977639526,3.49442588,226.44,226.4,0.1]
[1759977639718,3.49442588,226.44,226.41,10.87647521]
[1759977640030,3.49442588,226.44,226.4,0.1]
[1759977640206,3.49442588,226.43,226.4,0.1]
[1759977641534,3.49442588,226.41,226.4,0.1]
[1759977641828,3.49442588,226.41,226.3,0.68]
[1759977641829,20.8,226.39,226.3,10.87647521]
[1759977642028,0.68,226.38,226.3,10.87647521]
[1759977642351,31.5,226.37,226.32,10.87647521]
[1759977642626,31.5,226.39,226.27,10.87647521]
[1759977642936,0.5,226.48,226.34,10.87647521]
[1759977643124,20.8,226.44,226.36,10.87647521]
[1759977643320,20.8,226.44,226.38,10.87647521]
[1759977643632,3.49442588,226.4,226.35,10.87647521]
[1759977643829,3.49442588,226.41,226.36,0.7]
[1759977644034,3.49442588,226.41,226.3,10.87647521]
[1759977644237,3.49442588,226.4,226.32,10.87647521]
[1759977644606,3.49442588,226.4,226.34,10.87647521]
[1759977644810,31.5,226.42,226.35,4.41793682]
[1759977645015,3.49442588,226.4,226.36,10.87647521]
[1759977645217,31.5,226.42,226.34,10.87647521]
[1759977645424,3.49442588,226.38,226.34,15.99455809]
[1759977645631,31.5,226.42,226.35,0.7]
[1759977645837,31.5,226.42,226.34,15.29455809]
[1759977645838,3.49442588,226.4,226.34,15.29455809]
[1759977646013,3.49442588,226.39,226.34,15.29455809]
[1759977646330,3.49442588,226.39,226.34,15.99455809]
[1759977646541,3.49442588,226.38,226.34,15.29455809]
[1759977646731,3.49442588,226.37,226.34,15.29455809]
[1759977646921,3.49442588,226.38,226.34,15.99455809]
[1759977647118,3.49442588,226.39,226.34,15.29455809]
[1759977647356,3.49442588,226.39,226.36,10.87647521]
[1759977647357,20.8,226.39,226.36,10.87647521]
[1759977647541,34.99442588,226.41,226.38,10.87647521]
[1759977647720,34.99442588,226.41,226.38,11.57647521]
[1759977648131,34.99442588,226.41,226.36,10.87647521]
[1759977648415,3.49442588,226.4,226.36,0.7]
[1759977648623,34.99442588,226.41,226.38,10.87647521]
[1759977649032,35.69442588,226.41,226.38,10.87647521]
[1759977649226,31.5,226.41,226.38,10.87647521]
[1759977649534,3.49442588,226.4,226.38,10.87647521]
[1759977650237,3.49442588,226.4,226.35,15.29434972]
[1759977650535,32.2,226.41,226.35,15.99434972]
[1759977650747,3.49442588,226.39,226.35,15.99434972]
[1759977650934,3.49442588,226.37,226.35,15.29434972]
[1759977651926,1.31979054,226.37,226.35,15.29434972]
[1759977652439,1.31979054,226.36,226.32,4.41852244]
[1759977652624,1.31979054,226.36,226.33,10.87647521]
[1759977652825,32.81979054,226.36,226.33,10.87647521]
[1759977653048,31.5,226.36,226.33,10.87647521]
[1759977653345,32.81979054,226.36,226.33,10.87647521]
[1759977655041,32.81979054,226.36,226.33,15.29480147]
[1759977655943,31.5,226.36,226.33,15.99480147]
[1759977656319,31.5,226.36,226.33,15.29480147]
[1759977656522,31.5,226.36,226.33,15.99480147]
[1759977657527,32.81979054,226.36,226.33,15.29480147]
[1759977657724,2.01979054,226.35,226.31,10.87647521]
[1759977658136,31.5,226.36,226.31,11.57647521]
[1759977658347,31.5,226.36,226.32,0.7]
[1759977658523,0.7,226.39,226.33,0.7]
[1759977658725,32.81979054,226.38,226.33,0.7]
[1759977659224,33.51979054,226.38,226.34,4.41813201]
[1759977659625,31.5,226.38,226.35,10.87647521]
[1759977660160,32.81979054,226.38,226.35,10.87647521]
[1759977660320,32.81979054,226.38,226.32,5.11836551]
[1759977660321,2.01979054,226.37,226.33,10.87647521]
[1759977660645,1.31979054,226.35,226.31,10.87647521]
[1759977660831,32.2,226.34,226.28,4.41914603]
[1759977661037,31.5,226.33,226.29,10.87647521]
[1759977661239,31.5,226.33,226.29,15.29550451]
[1759977661545,1.31979054,226.32,226.27,0.7]
[1759977661853,31.5,226.33,226.28,10.87647521]
[1759977661854,1.31979054,226.3,226.28,10.87647521]
[1759977662147,32.2,226.33,226.25,15.29636471]
[1759977662446,1.31979054,226.31,226.25,27.04608846]
[1759977662647,53.0,226.33,226.25,27.04608846]
[1759977662848,1.31979054,226.31,226.25,15.99636471]
[1759977663040,1.31979054,226.28,226.23,5.12028024]
[1759977663251,1.31979054,226.28,226.22,10.97647521]
[1759977663252,31.5,226.28,226.22,10.97647521]
[1759977663438,31.5,226.28,226.23,10.87647521]
[1759977663632,1.31979054,226.29,226.25,10.87647521]